Cogmind - Beta 15 @@@ ROGUE MODE // 2025.06.01 @ 15:42:55 Player: Figgis Result: Destroyed by BF-5A7(R) with Subdweller Machine Gun Performance ------------- Evolutions (0) 0 Regions Visited (2) 400 Robots Destroyed (23) 115 Value Destroyed (766) 766 Prototype IDs (11) 220 Alien Tech Used (0) 0 Bonus (0) 0 TOTAL SCORE: 1501 Bonus ------- None Cogmind --------- Core Integrity 0/250 Matter 133/300 Energy 250/250 System Corruption 1% Temperature Cool (0) Movement Walking (190) Ox1 Location -10/Subcaves Parts ------- > --- POWER (1) -------- Ion Engine > --- PROPULSION (2) --- Aluminum Leg Aluminum Leg > --- UTILITY (2) ------ Large Storage Unit Core Shielding (fused) > --- WEAPON (2) ------- Shotgun Shotgun > --- INVENTORY (15) --- Ion Engine Subdweller Power Source Aluminum Leg Subdweller Monowheel Subdweller Optics Subdweller Beam Cannon Powered Cannon Shotgun Shotgun Subdweller Machine Gun Grenade Launcher Mining Claw Scrap Shield Fragment (47) Peak State ------------ > --- POWER ------------ Ion Engine > --- PROPULSION ------- Aluminum Leg Aluminum Leg > --- UTILITY ---------- Large Storage Unit Core Shielding > --- WEAPON ----------- Shotgun Shotgun > --- INVENTORY -------- Ion Engine Aluminum Leg Aluminum Leg Subdweller Monowheel Subdweller Optics Subdweller Beam Cannon Powered Cannon Shotgun Shotgun Subdweller Machine Gun Grenade Launcher Mining Claw Scrap Shield Fragment [Rating: 12] Favorites ----------- Power Ion Engine Engine Ion Engine Propulsion Aluminum Leg Leg Aluminum Leg Utility Core Shielding Storage Large Storage Unit Protection Core Shielding Weapon Shotgun Ballistic Gun Shotgun Slashing Weapon Mining Claw Build | -11 -10 -10 ------- Run | Yrd Mat Sub Slots Evolved . | . . . Power . | . . . Propulsion . | . . . Utility . | . . . Weapon . | . . . Parts Attached 31 | 3 17 11 Power 4 | 1 2 1 Engine 4 | 1 2 1 Core . | . . . Reactor . | . . . Propulsion 10 | 2 4 4 Treads . | . . . Leg 10 | 2 4 4 Wheel . | . . . Hover . | . . . Flight . | . . . Utility 5 | . 4 1 Device . | . . . Storage 3 | . 3 . Processor . | . . . Hackware . | . . . Protection 2 | . 1 1 Artifact . | . . . Weapon 12 | . 7 5 Energy Gun . | . . . Energy Cannon . | . . . Ballistic Gun 11 | . 7 4 Ballistic Cannon . | . . . Launcher . | . . . Special Weapon . | . . . Impact Weapon . | . . . Slashing Weapon 1 | . . 1 Piercing Weapon . | . . . Special Melee Weapon . | . . . Unidentified Prototypes . | . . . Parts Lost 5 | . 2 3 Power . | . . . Propulsion 4 | . 2 2 Utility . | . . . Weapon 1 | . . 1 Highest Loss Streak 2 | . 2 2 To Critical Strikes . | . . . Average Backups 12 | 2 11 13 Power 1 | . 2 1 Propulsion 3 | . 3 4 Utility 1 | . 1 1 Weapon 5 | 1 4 6 Tool/Special . | . . . Unused Backups 16 | . 4 12 Power 2 | . . 2 Propulsion 6 | . 2 4 Utility 2 | . . 2 Weapon 6 | . 2 4 Tool/Special . | . . . Average Slot Usage (%) 99 | . 98 99 Engine 14 | . 14 14 Leg 27 | . 27 27 Storage 13 | . 13 14 Protection 13 | . 13 14 Ballistic Gun 25 | . 27 23 Slashing Weapon 2 | . . 4 Peak Build Rating 12 | 3 10 12 Average Rating 9 | 2 8 10 On Entrance 4 | . 3 10 Naked Turns . | . . . Heaviest Build 32 | 3 30 32 Greatest Support 20 | 3 20 20 Greatest Overweight (x) 2 | . 1 2 Average Overweight (x) . | . . 1 Largest Inventory Capacity 15 | 5 15 15 Average Capacity 14 | 5 13 15 Most Carried 15 | 5 15 15 Average Carried 13 | 3 11 14 Final Capacity 15 | 5 15 15 Final Carried 15 | 5 15 14 Class Distribution -------------------- 97% | Mutant Dominant Class ---------------- Mutant | -10/Materials Mutant | -10/Subcaves Resources | -11 -10 -10 ----------- Run | Yrd Mat Sub Matter Collected 846 | 209 317 320 Remotely . | . . . Salvage Created 785 | . 639 146 Parts 47 | . 37 10 Haulers Intercepted . | . . . Recyclers Shooed . | . . . Parts Field Recycled . | . . . Retrieved Matter . | . . . Parts Self-Destructed 6 | . . 6 Prevented . | . . . Kills | -11 -10 -10 ------- Run | Yrd Mat Sub Combat Hostiles Destroyed 22 | . 17 5 Guns 22 | . 17 5 Classes Destroyed 5 | . 3 2 Watcher 1 | . 1 . Swarmer 3 | . 3 . Grunt 14 | . 14 . Sentry 1 | . . 1 Subdweller 4 | . . 4 Best Kill Streak 4 | . 4 1 Combat Bots Only 4 | . 4 1 Max Kills in Single Turn 1 | . 1 1 Gunslinging . | . . . Exploded . | . . . Melee . | . . . Uniques/NPCs Destroyed . | . . . Combat | -11 -10 -10 -------- Run | Yrd Mat Sub Hostile Shots Fired 132 | . 76 56 Missed 34 | . 21 13 Hits 98 | . 55 43 Projectile 98 | . 55 43 Critical Strikes 4 | . 3 1 Actively Blocked 1 | . 1 . Damage Taken 1607 | . 665 942 Core 258 | . 79 179 Absorbed by Shields . | . . . Redirected to Shielding 60 | . 19 41 Core Remaining (%) 100 | 100 . . Volleys Fired 95 | . 66 29 Largest 2 | . 2 2 Hottest 46 | . 46 46 Shots Fired 188 | . 132 56 Gun 188 | . 132 56 Cannon . | . . . Launcher . | . . . Special . | . . . Kinetic 188 | . 132 56 Thermal . | . . . Explosive . | . . . Electromagnetic . | . . . Robot Hit Streak 16 | . 14 16 Robot Miss Streak 5 | . 5 4 Penetration Max . | . . . Secondary Targets 1 | . 1 . Max Gunslinging Chain 1 | . 1 . Shots Hit Robots 139 | . 86 53 Core Hits 59 | . 43 16 Critical Kills . | . . . Critical Parts Destroyed 1 | . 1 . Critical Strikes 1 | . 1 . Destroy 1 | . 1 . Melee Attacks 30 | . . 30 Impact . | . . . Slashing 30 | . . 30 Piercing . | . . . Sneak Attacks . | . . . Combat Hostiles . | . . . Follow-up Attacks . | . . . Damage Inflicted 1543 | . 807 736 Guns 1539 | . 803 736 Cannons . | . . . Explosions . | . . . Melee . | . . . Ramming 4 | . 4 . Kinetic 1539 | . 803 736 Thermal . | . . . Explosive . | . . . Electromagnetic . | . . . Impact . | . . . Slashing . | . . . Piercing . | . . . Highest Corruption 1 | . 1 1 Average Corruption 1 | . 1 1 Corruption Purged . | . . . Corruption Blocked . | . . . Effects 19 | . 2 17 Message Errors 5 | . 1 4 Matter Fused 4 | . . 4 Heat Flow Errors 2 | . . 2 Energy Discharges 2 | . . 2 Parts Rejected 1 | . 1 . Parts Fused 1 | . . 1 Data Loss (minor) 2 | . . 2 Data Loss (major) 1 | . . 1 Weapon Failures 1 | . . 1 Overload Shots . | . . . Overflow Damage . | . . . Projectiles . | . . . Explosions . | . . . Melee . | . . . Knockbacks . | . . . Impact . | . . . Kinetic . | . . . Secondary . | . . . Self-Inflicted Damage . | . . . Shots . | . . . Rammed . | . . . Targets Rammed 1 | . 1 . Kicked 1 | . 1 . Crushed . | . . . Highest Temperature 231 | . 36 231 Average Temperature 28 | . 14 88 Received Heat Transfer 869 | . 369 500 Siege Activations . | . . . Martial Activations . | . . . Shielding Activations . | . . . Robots Disrupted . | . . . Combat Hostiles . | . . . Robots Corrupted . | . . . Combat Hostiles . | . . . Parts Fried . | . . . Impact Corruptions . | . . . Robots Melted . | . . . Combat Hostiles . | . . . Parts Melted . | . . . Heat Transferred . | . . . Parts Sabotaged . | . . . Parts Stolen . | . . . Parts Stripped . | . . . Power Chain Reactions . | . . . Alert | -11 -10 -10 ------- Run | Yrd Mat Sub Maximum Alert Level . | . . . Low Security (%) 100 | 100 100 . Level 1 . | . . . Level 2 . | . . . Level 3 . | . . . Level 4 . | . . . Level 5 . | . . . High Security . | . . . Max Security . | . . . Peak Influence 127 | . 127 . Initial . | . . . Average 43 | . 44 . Influence Increases 510 | . 490 20 Destroy 0b10 Robot/C 360 | . 340 20 Destroy 0b10 Robot/NC 5 | . 5 . Destroy Leader 92 | . 92 . Successful Hack 8 | . 8 . Lose Combat Pursuer 45 | . 45 . Influence Decreases 510 | . 437 73 Entered New Map 26 | . . 26 Time Decay 464 | . 417 47 Lost Part 20 | . 20 . Squads Dispatched 5 | . 5 . Investigation 3 | . 3 . Extermination . | . . . Reinforcement 2 | . 2 . Assault . | . . . Garrison . | . . . Intercept . | . . . Searches Triggered . | . . . Construction Impeded . | . . . Haulers Reinforced . | . . . Active Scanning Responses . | . . . Cargo Convoy Interrupts . | . . . Stealth | -11 -10 -10 --------- Run | Yrd Mat Sub Distress Signals 2 | . 2 . Communications Jammed . | . . . Distress Signals . | . . . Times Spotted 32 | . 26 6 Peak Tracking Total 6 | . 6 1 Tactical Retreats 3 | . 3 . Traps | -11 -10 -10 ------- Run | Yrd Mat Sub Traps Triggered 2 | . 2 . Indirectly . | . . . Trap Hack Attempts . | . . . Triggered . | . . . Disarmed . | . . . Reprogrammed . | . . . Reused . | . . . Traps Extracted . | . . . Installed . | . . . Triggered . | . . . Machines | -11 -10 -10 ---------- Run | Yrd Mat Sub Machines Disabled 1 | . . 1 Max in Single Turn 1 | . . 1 Machines Repaired . | . . . Machines Dismantled . | . . . Machines Sabotaged . | . . . Overloaded Fab Kills . | . . . Hacking | -11 -10 -10 --------- Run | Yrd Mat Sub Machines Accessed 5 | . 4 1 Terminals 4 | . 4 . Fabricators . | . . . Repair Stations . | . . . Recycling Units . | . . . Scanalyzers . | . . . Garrison Access . | . . . Total Hacks 11 | . 10 1 Successful 5 | . 4 1 Failed 6 | . 6 . Catastrophic 2 | . 2 . Database Lockouts . | . . . Manual 5 | . 5 . Terminals 10 | . 10 . Fabricators . | . . . Repair Stations . | . . . Recycling Units . | . . . Scanalyzers . | . . . Garrison Access . | . . . Terminal Hacks 5 | . 4 1 Record 1 | . 1 . Robot Analysis 2 | . 2 . Zone Layout 1 | . 1 . Proto ID Catalog 1 | . . 1 Fabricator Hacks . | . . . Repair Station Hacks . | . . . Recycling Unit Hacks . | . . . Scanalyzer . | . . . Garrison Access Hacks . | . . . Unauthorized Hacks . | . . . Terminals . | . . . Fabricators . | . . . Repair Stations . | . . . Recycling Units . | . . . Scanalyzers . | . . . Garrison Access . | . . . Data Cores Recovered . | . . . Used . | . . . Hacking Detections 4 | . 4 . Full Trace Events 1 | . 1 . Feedback Events 1 | . 1 . Corruption 1 | . 1 . Feedback Blocked . | . . . Robot Schematics Acquired . | . . . Robots Built . | . . . Authchips . | . . . Time . | . . . Total Robot Build Rating . | . . . Part Schematics Acquired . | . . . Parts Built . | . . . Authchips . | . . . Time . | . . . Total Part Build Rating . | . . . Parts Repaired . | . . . Time . | . . . Parts Recycled . | . . . Recycled Matter . | . . . Retrieved Matter . | . . . Retrieved Components . | . . . Parts Scanalyzed . | . . . Part Schematics Acquired . | . . . Parts Damaged . | . . . Bothacking | -11 -10 -10 ------------ Run | Yrd Mat Sub Used RIF Installer . | . . . Robots Hacked . | . . . Non-combat . | . . . Combat . | . . . Robot Hacks Applied . | . . . Relay Couplers Released . | . . . Fabnet Peak Effective % . | . . . Robots Rewired . | . . . Allies Hacked . | . . . Hacks Repelled . | . . . Allies | -11 -10 -10 -------- Run | Yrd Mat Sub Total Allies . | . . . Largest Group . | . . . Highest-Rated Group . | . . . Highest-Rated Ally . | . . . Total Orders . | . . . Ally Attacks . | . . . Total Damage . | . . . Kills . | . . . Allies Corrupted . | . . . Allies Melted . | . . . Intel | -11 -10 -10 ------- Run | Yrd Mat Sub Active Infowar (turns) . | . . . Robot Analysis Total 2 | . 2 . Derelict Logs Recovered 2 | . . 2 Drone Launches . | . . . Drone Recoveries . | . . . Exploration | -11 -10 -10 ------------- Run | Yrd Mat Sub Turns Passed 3368 | 26 1413 1929 Spaces Moved 1543 | 34 628 881 Core 48 | 34 14 . Treads . | . . . Legs 1495 | . 614 881 Wheels . | . . . Hover . | . . . Flight . | . . . Fastest Speed 50 | 50 50 190 Average Speed 177 | 50 164 191 Slowest Speed 260 | 50 190 260 Overloaded Moves . | . . . Propulsion Burnouts . | . . . Robots Hopped . | . . . Potential Cave-ins . | . . . Cave-ins Triggered . | . . . Exploration Rate (%) 48 | 3 87 55 Regions Visited 2 Branch Regions 1 Pre-discovered Areas . | . . . Known Exits Taken . | . . . Unknown Exits Taken 2 | 1 1 . Scrap Searched . | . . . Spaces Dug . | . . . Terrain Destroyed . | . . . Melee . | . . . Projectile . | . . . AOE . | . . . Terrain Rammed . | . . . Walls Destroyed . | . . . Machines Disabled . | . . . Actions | -11 -10 -10 --------- Run | Yrd Mat Sub Total 1953 | 41 909 1003 Wait 184 | . 159 25 Move 1541 | 33 627 881 Hop . | . . . Pick Up 37 | 5 23 9 Fast Attach 4 | 3 1 . Attach 9 | . 6 3 Detach . | . . . Swap 29 | . 11 18 Drop 23 | . 15 8 Fire 95 | . 66 29 Melee 30 | . . 30 Ram . | . . . Kick 1 | . 1 . Crush . | . . . Escape Stasis . | . . . Rewire . | . . . Trap . | . . . Miscellaneous . | . . . Route ------- -11/Scrapyard -10/Materials (discovered 5 exits: [*Mat x2] / [*Min x2] / *Sub) -10/Subcaves History --------- Turn | Location | Event 5 | -11/Scrapyard | Discovered new exit (range 16) 27 | -11/Scrapyard | Entered Materials 240 | -10/Materials | Discovered new exit (range 12) 246 | -10/Materials | Discovered new exit (range 17) 303 | -10/Materials | Build established: Mutant 1036 | -10/Materials | Discovered new exit (range 4) 1202 | -10/Materials | Discovered new exit (range 6) 1425 | -10/Materials | Discovered new exit (range 6) 1440 | -10/Materials | Entered Subcaves 1608 | -10/Subcaves | Learned 2 Materials zone layouts 1661 | -10/Subcaves | Learned Materials stockpile data 1733 | -10/Subcaves | Shifting Twisted Machinery released Flamer 1785 | -10/Subcaves | Shifting Twisted Machinery released Sub. Beam Cannon 2105 | -10/Subcaves | Core integrity fell below 50% 2401 | -10/Subcaves | Shifting Twisted Machinery released Unknown Special Weapon 2407 | -10/Subcaves | Shifting Twisted Machinery released Sub. Laser 2408 | -10/Subcaves | A swath of the cavern ceiling suddenly collapsed 2930 | -10/Subcaves | Visited 4L-MR0's lab 2950 | -10/Subcaves | Found Powered Cannon 3084 | -10/Subcaves | Core integrity fell below 20% 3369 | -10/Subcaves | Destroyed by BF-5A7(R) with Subdweller Machine Gun Last Messages --------------- 02945_ 4L-MR0 mumbles: "I'm surprised some of them are even willing to come in here given their fear of my usual visitors." 02948_ 4L-MR0 mumbles: "Who knows where that last prototype ended up, probably tossed aside somewhere as if it were useless junk..." 02950_ Acquired Powered Cannon. 03000_ System corrupted: Matter fused (-10). 03023_ Subatomizers dissect the Sub. Beam Cannon. 03030_ Dropped Aluminum Leg. 03033_ Subatomizers dissect the Sub. Beam Cannon. 03040_ Critical hit (Meltdown: +260). 03044_ Subatomizers dissect the Sub. Beam Cannon. 03081_ Aluminum Leg destroyed. 03093_ XD-IJF(R) destroyed. 03097_ Acquired 19 matter. 03117_ Subatomizers dissect the Sub. Beam Cannon. 03129_ Acquired Sub. Power Source. 03247_ System corrupted: Matter fused (-5). 03267_ Acquired 6 matter. 03313_ System corrupted: Substantial component data lost. 03357_ BF-5A7(R): "MADSUB!" Map ----- +----------------------------------------------------+ | ?????????????????????????????????????????????????? | | ?????????????????????????????????????????????????? | | ?????????????????????????????????????????????????? | | ?????????????????????????????????????????????????? | | ?????????????????????????????????????????????????? | | ?????????????????????????????????????????????????? | | ?????????????????????????????????????????????????? | | ?????????????????????????????????????????????????? | | ?????????????????????????????????????????????????? | | ????????????????????????????????####??##???????### | | ???????????????????????????????? ### ##????## | | ???????????????????????????????? % ####?# | | ????????????????????????????????? ### | | ?????????????????????????????????? ## | | ???????????????????????????????????# | | ????????????????????????????????????? | | ??????????????????????????????????????# | | ????????????? ?????????????????###????# | | ???????????? ????????????????# ##??## | | ???????????? ???????????????# #?## | | ????????????? ???????#####?## ### | | ??????????????# ??????# #?# ## ## | | ??????????????# ?????# ### ##### | | ???????????????# ##??# # ! ##?# ## | | ????????????????# #?# # ## ### | | ????????????????# ##@ ?## | | ????????????????# R # ?# | | ????????? ### ### ### ## | | ?????????????## #?###?####?# ## | | ??????????????# ##??????????## #### | | ??????????????## ####????????????## ##??# | | ???????????????###& #???????????????########??## | | ?????????????????#% ???????????????## ######## | | ?????????????????#* ????????????????# | | ???????????????? ?????????????????## | | ??????????????? ???????????????????## | | ?????????????? ????????????????????# | | ????????????? ?????????????????????## | | ????????????? ????????????????????????#### | | ??????????????????????????????????????????## | | ???????????????????????????????????????????# ## | | ???????????????????????????????????????????### #? | | ?????????????????????????????????????????????####? | | ?????????????????????????????????????????????????? | | ?????????????????????????????????????????????????? | | ?????????????????????????????????????????????????? | | ?????????????????????????????????????????????????? | | ?????????????????????????????????????????????????? | | ?????????????????????????????????????????????????? | | ?????????????????????????????????????????????????? | +----------------------------------------------------+ Best States ------------- Heat Dissipation 25 Energy Generation 10 Energy Capacity 250 Matter Stores 300 Matter Capacity 300 Sight Range 16 Terrain Scan Density 10 Core Shielding 20 Evasion (%) 55 Item Schematics ----------------- None Robot Schematics ------------------ None Fabricated ------------ Nothing Repaired ---------- Nothing Alien Tech Used ----------------- None Achievements -------------- None Challenges ------------ None Game ------ Seed GravityVampiricGreatsword Manual? 0 Play Time 00:17:29 Cumulative 170.9 hours Start 2025.06.01 @ 15:28:43 End 2025.06.01 @ 15:42:55 Sessions 1 Manual Loads 0 Difficulty Rogue Special Mode None Game No. 266 Rogue 263 Adventurer 3 Explorer 0 Win Type - Total 1 Types 1/0/0/0/0/0/0/0/0/0 Lore% 58 Gallery% 57 Achievement% 45 Wizard Run 0 Options --------- Layout 0 ASCII 0 Keyboard 0 Movement Mouse Keybinds 0 Fullscreen 2 Font 18/SmallcapsGlow Map View 76x50 Zoom Use 0% Tactical HUD 1 Map Filters NONE Filters NONE Steam 1 RUN: 9d1d2cbd-1d1b-40a2-b601-5202b584a1b0